[Event "Late-Titled-Tuesday-Blitz-May-28-2024"]
[Site "Chess.com"]
[Date "2024.05.28"]
[Round "3"]
[White "Navyblue1"]
[Black "Valiyev_Shahin"]
[Result "0-1"]
[WhiteElo "2236"]
[BlackElo "2529"]
[TimeControl "180+1"]
[EndTime "14:29:04 PDT"]
[Termination "Valiyev_Shahin won by resignation"]

1. d4 {[%clk 0:03:00.9]} 1... Nf6 {[%clk 0:02:57]} 2. c4 {[%clk 0:03:00.7]} 2...
e6 {[%clk 0:02:56.9]} 3. Nf3 {[%clk 0:02:57]} 3... d5 {[%clk 0:02:55.5]} 4. Nc3
{[%clk 0:02:56]} 4... Be7 {[%clk 0:02:49.8]} 5. cxd5 {[%clk 0:02:49.5]} 5...
exd5 {[%clk 0:02:49.2]} 6. Bg5 {[%clk 0:02:49.9]} 6... c6 {[%clk 0:02:46.1]} 7.
e3 {[%clk 0:02:47.2]} 7... Bf5 {[%clk 0:02:45.9]} 8. Bd3 {[%clk 0:02:36.1]} 8...
Bxd3 {[%clk 0:02:45.4]} 9. Qxd3 {[%clk 0:02:36]} 9... O-O {[%clk 0:02:46]} 10.
O-O {[%clk 0:02:35.6]} 10... Nbd7 {[%clk 0:02:45.4]} 11. Rab1 {[%clk 0:02:31.9]}
11... a5 {[%clk 0:02:42.6]} 12. Rfe1 {[%clk 0:02:29]} 12... Re8 {[%clk
0:02:42.6]} 13. a3 {[%clk 0:02:19.1]} 13... Ne4 {[%clk 0:02:36.7]} 14. Bxe7
{[%clk 0:02:17.7]} 14... Qxe7 {[%clk 0:02:36.6]} 15. Nd2 {[%clk 0:02:18.6]}
15... Nd6 {[%clk 0:02:36.4]} 16. f3 {[%clk 0:02:07.3]} 16... f5 {[%clk
0:01:49.6]} 17. Re2 {[%clk 0:02:00.2]} 17... Qf7 {[%clk 0:01:32]} 18. Rbe1
{[%clk 0:01:56.5]} 18... Re7 {[%clk 0:01:32.2]} 19. e4 {[%clk 0:01:46.3]} 19...
dxe4 {[%clk 0:01:26.8]} 20. fxe4 {[%clk 0:01:44.5]} 20... fxe4 {[%clk 0:01:27]}
21. Ndxe4 {[%clk 0:01:42.3]} 21... Nxe4 {[%clk 0:01:22.4]} 22. Rxe4 {[%clk
0:01:37.8]} 22... Rae8 {[%clk 0:01:06]} 23. Rxe7 {[%clk 0:01:30.9]} 23... Rxe7
{[%clk 0:01:06.9]} 24. Rxe7 {[%clk 0:01:30.5]} 24... Qxe7 {[%clk 0:01:07.8]} 25.
Qe4 {[%clk 0:01:13.6]} 25... Kf7 {[%clk 0:00:49.7]} 26. Kf2 {[%clk 0:01:00.8]}
26... Nf6 {[%clk 0:00:44.6]} 27. Qxe7+ {[%clk 0:00:58.3]} 27... Kxe7 {[%clk
0:00:45.5]} 28. Kf3 {[%clk 0:00:54.1]} 28... Kd6 {[%clk 0:00:45.1]} 29. Ne4+
{[%clk 0:00:49.6]} 29... Kd5 {[%clk 0:00:39.4]} 30. Nxf6+ {[%clk 0:00:49]} 30...
gxf6 {[%clk 0:00:39.4]} 31. Ke3 {[%clk 0:00:49.5]} 31... Kc4 {[%clk 0:00:25.4]}
32. Ke4 {[%clk 0:00:47.9]} 32... Kb3 {[%clk 0:00:24]} 33. Kf5 {[%clk 0:00:46.2]}
33... Kxb2 {[%clk 0:00:24.3]} 34. Kxf6 {[%clk 0:00:46.9]} 34... Kxa3 {[%clk
0:00:24.7]} 35. h4 {[%clk 0:00:44.6]} 35... Kb4 {[%clk 0:00:22.5]} 36. g4 {[%clk
0:00:44.5]} 36... a4 {[%clk 0:00:22.7]} 37. h5 {[%clk 0:00:44.7]} 37... a3
{[%clk 0:00:23.6]} 38. g5 {[%clk 0:00:45.2]} 38... a2 {[%clk 0:00:24.2]} 39. g6
{[%clk 0:00:45.6]} 39... a1=Q {[%clk 0:00:24.7]} 40. g7 {[%clk 0:00:38.5]} 40...
Qxd4+ {[%clk 0:00:24.6]} 41. Kf7 {[%clk 0:00:38.9]} 41... Qd5+ {[%clk
0:00:24.8]} 42. Kf8 {[%clk 0:00:36.4]} 42... Qf5+ {[%clk 0:00:23.4]} 43. Ke7
{[%clk 0:00:23.9]} 43... Qg5+ {[%clk 0:00:21.7]} 44. Kf8 {[%clk 0:00:23.6]}
44... Qf6+ {[%clk 0:00:21.6]} 45. Kg8 {[%clk 0:00:24.1]} 45... Qg5 {[%clk
0:00:15.9]} 46. Kh8 {[%clk 0:00:20.6]} 46... Qxh5 {[%clk 0:00:12.8]} 47. g8=Q
{[%clk 0:00:20.7]} 47... Qe5+ {[%clk 0:00:13.4]} 48. Kxh7 {[%clk 0:00:20.2]}
48... Qh5+ {[%clk 0:00:13.8]} 49. Kg7 {[%clk 0:00:20.4]} 49... Qg5+ {[%clk
0:00:14.6]} 50. Kf8 {[%clk 0:00:20.9]} 50... Qxg8+ {[%clk 0:00:15.4]} 51. Kxg8
{[%clk 0:00:21.8]} 51... c5 {[%clk 0:00:16.2]} 0-1

[Event "Late-Titled-Tuesday-Blitz-May-28-2024"]
[Site "Chess.com"]
[Date "2024.05.28"]
[Round "3"]
[White "LUISMIGUELOV"]
[Black "momotaro77"]
[Result "0-1"]
[WhiteElo "2235"]
[BlackElo "2525"]
[TimeControl "180+1"]
[EndTime "14:29:05 PDT"]
[Termination "momotaro77 won by resignation"]

1. d4 {[%clk 0:02:59.1]} 1... Nf6 {[%clk 0:02:56.7]} 2. c3 {[%clk 0:02:59.1]}
2... e6 {[%clk 0:02:57.4]} 3. Bg5 {[%clk 0:02:58.6]} 3... d5 {[%clk 0:02:56.7]}
4. Nd2 {[%clk 0:02:58.4]} 4... c5 {[%clk 0:02:52.5]} 5. e3 {[%clk 0:02:57.9]}
5... h6 {[%clk 0:02:49.2]} 6. Bh4 {[%clk 0:02:55.8]} 6... Nc6 {[%clk 0:02:38.5]}
7. Bd3 {[%clk 0:02:55.4]} 7... Bd6 {[%clk 0:02:34.2]} 8. f4 {[%clk 0:02:52.9]}
8... g5 {[%clk 0:02:33.3]} 9. fxg5 {[%clk 0:02:50.3]} 9... Nd7 {[%clk
0:02:31.3]} 10. Ngf3 {[%clk 0:02:48.4]} 10... Be7 {[%clk 0:02:30.5]} 11. O-O
{[%clk 0:02:24.5]} 11... hxg5 {[%clk 0:02:29.8]} 12. Bg3 {[%clk 0:02:24.5]}
12... g4 {[%clk 0:02:28.9]} 13. Ne5 {[%clk 0:02:23.9]} 13... Ndxe5 {[%clk
0:02:24.9]} 14. dxe5 {[%clk 0:02:23.7]} 14... Bg5 {[%clk 0:02:21]} 15. Bf4
{[%clk 0:02:15.1]} 15... g3 {[%clk 0:02:08.5]} 16. hxg3 {[%clk 0:02:13]} 16...
Bxf4 {[%clk 0:01:57.3]} 17. exf4 {[%clk 0:02:12.4]} 17... c4 {[%clk 0:01:42.6]}
18. Bc2 {[%clk 0:02:06.8]} 18... Qb6+ {[%clk 0:01:43]} 19. Rf2 {[%clk
0:02:04.2]} 19... Bd7 {[%clk 0:01:39.9]} 20. b4 {[%clk 0:02:00.3]} 20... O-O-O
{[%clk 0:01:38.5]} 21. a4 {[%clk 0:01:58]} 21... Rh1+ {[%clk 0:01:37.8]} 22.
Kxh1 {[%clk 0:01:51]} 22... Qxf2 {[%clk 0:01:38.7]} 23. Nf3 {[%clk 0:01:44.7]}
23... Rh8+ {[%clk 0:01:37.9]} 24. Nh2 {[%clk 0:01:41.2]} 24... Qxg3 {[%clk
0:01:38.4]} 25. Qg1 {[%clk 0:01:40.6]} 25... Ne7 {[%clk 0:01:34.8]} 26. Rf1
{[%clk 0:01:17.1]} 26... Qxc3 {[%clk 0:01:31.3]} 27. Bb1 {[%clk 0:01:12.4]}
27... Kb8 {[%clk 0:00:59.8]} 28. b5 {[%clk 0:01:10.9]} 28... a6 {[%clk
0:00:45.8]} 29. bxa6 {[%clk 0:01:10]} 29... Bc6 {[%clk 0:00:45.6]} 30. axb7
{[%clk 0:01:08.3]} 30... d4 {[%clk 0:00:44.9]} 31. a5 {[%clk 0:00:57.4]} 31...
Nd5 {[%clk 0:00:38.5]} 32. Rf3 {[%clk 0:00:55.6]} 32... Ne3 {[%clk 0:00:38.3]}
33. Rg3 {[%clk 0:00:48.5]} 33... Qb2 {[%clk 0:00:26.8]} 34. a6 {[%clk
0:00:46.7]} 34... Nxg2 {[%clk 0:00:24.3]} 35. Bh7 {[%clk 0:00:30.3]} 35... Ne3+
{[%clk 0:00:20.6]} 36. Rf3 {[%clk 0:00:17.3]} 36... Bxf3+ {[%clk 0:00:19.1]} 37.
Nxf3 {[%clk 0:00:17.1]} 37... Rxh7+ {[%clk 0:00:19.5]} 38. Nh2 {[%clk
0:00:15.8]} 38... Rh8 {[%clk 0:00:18]} 39. Qg7 {[%clk 0:00:11.2]} 39... Qc1+
{[%clk 0:00:16.3]} 40. Qg1 {[%clk 0:00:10.2]} 40... Qd2 {[%clk 0:00:15.6]} 41.
a7+ {[%clk 0:00:06.9]} 41... Kxa7 {[%clk 0:00:14.6]} 42. Qa1+ {[%clk 0:00:07.4]}
42... Kxb7 {[%clk 0:00:14.8]} 43. Qb2+ {[%clk 0:00:06.9]} 43... Qxb2 {[%clk
0:00:13.1]} 0-1

[Event "Late-Titled-Tuesday-Blitz-May-28-2024"]
[Site "Chess.com"]
[Date "2024.05.28"]
[Round "3"]
[White "CheckBits"]
[Black "ahkashefi2800"]
[Result "0-1"]
[WhiteElo "2386"]
[BlackElo "2564"]
[TimeControl "180+1"]
[EndTime "14:29:06 PDT"]
[Termination "ahkashefi2800 won on time"]

1. e4 {[%clk 0:03:00.9]} 1... c6 {[%clk 0:02:59.2]} 2. Nf3 {[%clk 0:02:57.2]}
2... d5 {[%clk 0:02:57.8]} 3. Nc3 {[%clk 0:02:57.5]} 3... dxe4 {[%clk
0:02:56.3]} 4. Nxe4 {[%clk 0:02:57.9]} 4... Nd7 {[%clk 0:02:56.8]} 5. Bc4 {[%clk
0:02:52.9]} 5... Ngf6 {[%clk 0:02:55]} 6. Nxf6+ {[%clk 0:02:48.1]} 6... Nxf6
{[%clk 0:02:54.1]} 7. d4 {[%clk 0:02:47.6]} 7... Bf5 {[%clk 0:02:51.4]} 8. Ne5
{[%clk 0:02:44.7]} 8... e6 {[%clk 0:02:50.9]} 9. c3 {[%clk 0:02:43.3]} 9... Bd6
{[%clk 0:02:49.6]} 10. Qf3 {[%clk 0:02:40.3]} 10... Bg4 {[%clk 0:02:37.3]} 11.
Qg3 {[%clk 0:02:32.1]} 11... Bxe5 {[%clk 0:02:36]} 12. Qxe5 {[%clk 0:02:27.3]}
12... O-O {[%clk 0:02:31.3]} 13. O-O {[%clk 0:02:25.7]} 13... h6 {[%clk
0:02:24.8]} 14. Bf4 {[%clk 0:02:16.7]} 14... Nd5 {[%clk 0:02:21.1]} 15. Bg3
{[%clk 0:02:16.4]} 15... Qf6 {[%clk 0:02:15.9]} 16. Rfe1 {[%clk 0:02:06.2]}
16... Qxe5 {[%clk 0:02:14.6]} 17. Rxe5 {[%clk 0:02:05.9]} 17... Bf5 {[%clk
0:02:14.1]} 18. h3 {[%clk 0:01:57.3]} 18... Rad8 {[%clk 0:02:07.8]} 19. Rae1
{[%clk 0:01:56.5]} 19... Bg6 {[%clk 0:01:43.5]} 20. f3 {[%clk 0:01:43.8]} 20...
Rd7 {[%clk 0:01:38.6]} 21. h4 {[%clk 0:01:41.5]} 21... Rfd8 {[%clk 0:01:36.1]}
22. h5 {[%clk 0:01:40.9]} 22... Bf5 {[%clk 0:01:30.7]} 23. Bh4 {[%clk
0:01:38.4]} 23... Rc8 {[%clk 0:01:27.6]} 24. g4 {[%clk 0:01:37.3]} 24... Bh7
{[%clk 0:01:26.2]} 25. Bf2 {[%clk 0:01:33.6]} 25... b5 {[%clk 0:01:23.6]} 26.
Bb3 {[%clk 0:01:31.8]} 26... a5 {[%clk 0:01:23.6]} 27. a4 {[%clk 0:01:22.6]}
27... Rb8 {[%clk 0:01:05.2]} 28. axb5 {[%clk 0:01:20.6]} 28... Rxb5 {[%clk
0:00:57.5]} 29. Ba4 {[%clk 0:01:17.5]} 29... Rb6 {[%clk 0:00:46.4]} 30. c4
{[%clk 0:01:14.2]} 30... Nf4 {[%clk 0:00:35.4]} 31. Rxa5 {[%clk 0:01:08.9]}
31... Rd8 {[%clk 0:00:25.9]} 32. b3 {[%clk 0:00:54.2]} 32... Bc2 {[%clk
0:00:21.2]} 33. Rc1 {[%clk 0:00:37.1]} 33... Ne2+ {[%clk 0:00:18.7]} 34. Kg2
{[%clk 0:00:36.1]} 34... Nxc1 {[%clk 0:00:18.9]} 35. d5 {[%clk 0:00:35.4]} 35...
Rxb3 {[%clk 0:00:08.7]} 36. dxc6 {[%clk 0:00:21.2]} 36... Rb2 {[%clk 0:00:07.6]}
37. Bb5 {[%clk 0:00:04]} 37... Nd3 {[%clk 0:00:06.7]} 0-1

[Event "Late-Titled-Tuesday-Blitz-May-28-2024"]
[Site "Chess.com"]
[Date "2024.05.28"]
[Round "3"]
[White "Bala-Afiada"]
[Black "laskakid"]
[Result "0-1"]
[WhiteElo "2018"]
[BlackElo "2348"]
[TimeControl "180+1"]
[EndTime "14:29:06 PDT"]
[Termination "laskakid won by resignation"]

1. d4 {[%clk 0:02:59.3]} 1... f5 {[%clk 0:02:59.7]} 2. c4 {[%clk 0:02:57.9]}
2... Nf6 {[%clk 0:02:59.7]} 3. Nf3 {[%clk 0:02:56.9]} 3... g6 {[%clk 0:02:58.3]}
4. g3 {[%clk 0:02:57.5]} 4... Bg7 {[%clk 0:02:57.6]} 5. Bg2 {[%clk 0:02:58.1]}
5... O-O {[%clk 0:02:57.7]} 6. O-O {[%clk 0:02:58.7]} 6... d6 {[%clk 0:02:58]}
7. b3 {[%clk 0:02:59.3]} 7... c6 {[%clk 0:02:52.5]} 8. Bb2 {[%clk 0:02:59.5]}
8... a5 {[%clk 0:02:52.6]} 9. Nbd2 {[%clk 0:02:54.6]} 9... Na6 {[%clk
0:02:52.3]} 10. e4 {[%clk 0:02:52.9]} 10... fxe4 {[%clk 0:02:48.7]} 11. Ng5
{[%clk 0:02:52.2]} 11... d5 {[%clk 0:02:48.6]} 12. a3 {[%clk 0:02:26.8]} 12...
h6 {[%clk 0:02:39.1]} 13. Nh3 {[%clk 0:02:26.2]} 13... Bg4 {[%clk 0:02:38.7]}
14. Qc2 {[%clk 0:02:22.1]} 14... g5 {[%clk 0:02:25]} 15. Kh1 {[%clk 0:02:12.2]}
15... Qd7 {[%clk 0:02:22.8]} 16. Ng1 {[%clk 0:02:10.8]} 16... Bf5 {[%clk
0:02:15.6]} 17. Qd1 {[%clk 0:01:57.6]} 17... Nc7 {[%clk 0:02:07.7]} 18. Rc1
{[%clk 0:01:48.3]} 18... Rad8 {[%clk 0:02:01.7]} 19. cxd5 {[%clk 0:01:43.7]}
19... cxd5 {[%clk 0:01:59.3]} 20. Rc5 {[%clk 0:01:38]} 20... b6 {[%clk
0:01:57.1]} 21. Rc1 {[%clk 0:01:29.4]} 21... Rc8 {[%clk 0:01:55.4]} 22. Qe2
{[%clk 0:01:24.1]} 22... Ne6 {[%clk 0:01:42.3]} 23. f3 {[%clk 0:01:21.1]} 23...
exf3 {[%clk 0:01:28]} 24. Ngxf3 {[%clk 0:01:19.1]} 24... Ne4 {[%clk 0:01:25.4]}
25. Ne5 {[%clk 0:01:15.2]} 25... Bxe5 {[%clk 0:01:09.6]} 26. dxe5 {[%clk
0:01:13]} 26... N4c5 {[%clk 0:00:58.7]} 27. Qh5 {[%clk 0:01:01]} 27... Kg7
{[%clk 0:00:51.1]} 28. Nf3 {[%clk 0:00:31.7]} 28... Bg6 {[%clk 0:00:33.6]} 29.
Qh3 {[%clk 0:00:21.4]} 29... Nd3 {[%clk 0:00:26]} 30. Rxc8 {[%clk 0:00:20]}
30... Rxc8 {[%clk 0:00:24.6]} 31. Nd4 {[%clk 0:00:14.4]} 31... Nxb2 {[%clk
0:00:08.4]} 32. Nxe6+ {[%clk 0:00:13.9]} 32... Kg8 {[%clk 0:00:06.7]} 33. Bxd5
{[%clk 0:00:09.1]} 33... Qxd5+ {[%clk 0:00:05.6]} 34. Kg1 {[%clk 0:00:08.8]}
34... Qxe5 {[%clk 0:00:04.2]} 35. Qg2 {[%clk 0:00:05.3]} 35... Qe3+ {[%clk
0:00:04.1]} 36. Kh1 {[%clk 0:00:05.2]} 36... Nd3 {[%clk 0:00:04.2]} 37. Rf2
{[%clk 0:00:04.5]} 37... Be4 {[%clk 0:00:04.2]} 38. Qxe4 {[%clk 0:00:04.6]}
38... Qxe4+ {[%clk 0:00:04.2]} 39. Kg1 {[%clk 0:00:05.3]} 39... Nxf2 {[%clk
0:00:04.5]} 40. Kxf2 {[%clk 0:00:05.7]} 40... Rc2+ {[%clk 0:00:05]} 0-1

[Event "Late-Titled-Tuesday-Blitz-May-28-2024"]
[Site "Chess.com"]
[Date "2024.05.28"]
[Round "3"]
[White "AryanTari"]
[Black "cristianserban1"]
[Result "1-0"]
[WhiteElo "3016"]
[BlackElo "2525"]
[TimeControl "180+1"]
[EndTime "14:29:08 PDT"]
[Termination "AryanTari won on time"]

1. a3 {[%clk 0:03:00.9]} 1... d5 {[%clk 0:02:54]} 2. Nf3 {[%clk 0:02:59.4]} 2...
Nf6 {[%clk 0:02:53.5]} 3. d4 {[%clk 0:02:58.5]} 3... e6 {[%clk 0:02:52.3]} 4.
Bf4 {[%clk 0:02:58]} 4... c5 {[%clk 0:02:50.9]} 5. e3 {[%clk 0:02:57.7]} 5...
Nc6 {[%clk 0:02:50.5]} 6. Nbd2 {[%clk 0:02:49]} 6... Qb6 {[%clk 0:02:26.7]} 7.
dxc5 {[%clk 0:02:48.2]} 7... Bxc5 {[%clk 0:02:27.6]} 8. b4 {[%clk 0:02:47.8]}
8... Be7 {[%clk 0:02:28.1]} 9. c4 {[%clk 0:02:47.3]} 9... O-O {[%clk 0:02:17.2]}
10. Be2 {[%clk 0:02:38.2]} 10... Nh5 {[%clk 0:01:57.4]} 11. Bg5 {[%clk
0:02:21.6]} 11... Bxg5 {[%clk 0:01:57.3]} 12. Nxg5 {[%clk 0:02:22.4]} 12... Nf6
{[%clk 0:01:58]} 13. Qc2 {[%clk 0:02:21.4]} 13... h6 {[%clk 0:01:29.5]} 14. Ngf3
{[%clk 0:02:21.1]} 14... dxc4 {[%clk 0:01:24.9]} 15. Nxc4 {[%clk 0:02:20.7]}
15... Qc7 {[%clk 0:01:24.9]} 16. Rc1 {[%clk 0:02:09.1]} 16... Bd7 {[%clk
0:01:23.9]} 17. O-O {[%clk 0:02:08.7]} 17... Rac8 {[%clk 0:01:21.3]} 18. Qb2
{[%clk 0:02:08.6]} 18... Qb8 {[%clk 0:01:19.5]} 19. Rfd1 {[%clk 0:02:06.9]}
19... Ne7 {[%clk 0:00:54.1]} 20. Nfe5 {[%clk 0:01:35.2]} 20... Ba4 {[%clk
0:00:52.9]} 21. Re1 {[%clk 0:01:29]} 21... Rfd8 {[%clk 0:00:33.5]} 22. Bf3
{[%clk 0:01:23.5]} 22... Nc6 {[%clk 0:00:21.4]} 23. b5 {[%clk 0:01:13.6]} 23...
Nxe5 {[%clk 0:00:18.8]} 24. Nxe5 {[%clk 0:01:14.5]} 24... Rxc1 {[%clk
0:00:17.5]} 25. Rxc1 {[%clk 0:01:13.9]} 25... a6 {[%clk 0:00:17.7]} 26. bxa6
{[%clk 0:01:07.1]} 26... bxa6 {[%clk 0:00:18.6]} 27. Qxb8 {[%clk 0:01:06.8]}
27... Rxb8 {[%clk 0:00:19.5]} 28. h4 {[%clk 0:01:06.2]} 28... Nd7 {[%clk
0:00:15.1]} 29. Nxd7 {[%clk 0:00:53.7]} 29... Bxd7 {[%clk 0:00:16]} 30. Rc7
{[%clk 0:00:53.5]} 30... Bb5 {[%clk 0:00:15.4]} 31. g4 {[%clk 0:00:52.9]} 31...
Kf8 {[%clk 0:00:10.9]} 32. Kg2 {[%clk 0:00:48.1]} 32... Rd8 {[%clk 0:00:10.5]}
33. Be4 {[%clk 0:00:39.9]} 33... Bd3 {[%clk 0:00:06.2]} 34. Bb7 {[%clk
0:00:34.6]} 34... Bb5 {[%clk 0:00:04.4]} 35. Be4 {[%clk 0:00:19.6]} 35... Bd3
{[%clk 0:00:04]} 36. Bf3 {[%clk 0:00:20]} 36... Bb5 {[%clk 0:00:04.1]} 37. g5
{[%clk 0:00:20.7]} 37... hxg5 {[%clk 0:00:04.2]} 38. hxg5 {[%clk 0:00:21.6]}
38... Rd3 {[%clk 0:00:04]} 39. g6 {[%clk 0:00:17.9]} 39... fxg6 {[%clk
0:00:03.9]} 40. Be4 {[%clk 0:00:18.2]} 40... Rxa3 {[%clk 0:00:03]} 41. Bxg6
{[%clk 0:00:18.9]} 41... Be8 {[%clk 0:00:01]} 42. Rc8 {[%clk 0:00:18.3]} 42...
Ke7 {[%clk 0:00:01.5]} 43. Rxe8+ {[%clk 0:00:18.3]} 43... Kf6 {[%clk 0:00:02.4]}
44. Be4 {[%clk 0:00:18.6]} 44... a5 {[%clk 0:00:03.3]} 45. Ra8 {[%clk
0:00:18.2]} 45... a4 {[%clk 0:00:04.2]} 46. Bc6 {[%clk 0:00:18.4]} 46... Rd3
{[%clk 0:00:04.4]} 47. Rxa4 {[%clk 0:00:17.7]} 1-0

[Event "Late-Titled-Tuesday-Blitz-May-28-2024"]
[Site "Chess.com"]
[Date "2024.05.28"]
[Round "3"]
[White "Umumba_FM"]
[Black "Supelyel"]
[Result "0-1"]
[WhiteElo "2617"]
[BlackElo "2476"]
[TimeControl "180+1"]
[EndTime "14:29:14 PDT"]
[Termination "Supelyel won by resignation"]

1. d4 {[%clk 0:03:00.9]} 1... d6 {[%clk 0:02:30.3]} 2. e4 {[%clk 0:03:00.5]}
2... Nf6 {[%clk 0:02:28.6]} 3. Nc3 {[%clk 0:03:00.1]} 3... e5 {[%clk 0:02:28.7]}
4. Nf3 {[%clk 0:03:00.5]} 4... Nbd7 {[%clk 0:02:28.6]} 5. Bc4 {[%clk 0:02:57.7]}
5... Be7 {[%clk 0:02:28.7]} 6. O-O {[%clk 0:02:56.2]} 6... O-O {[%clk 0:02:29]}
7. Re1 {[%clk 0:02:56.4]} 7... c6 {[%clk 0:02:28.9]} 8. a4 {[%clk 0:02:56.7]}
8... h6 {[%clk 0:02:27.3]} 9. h3 {[%clk 0:02:56.6]} 9... Qc7 {[%clk 0:02:26.6]}
10. Be3 {[%clk 0:02:56.3]} 10... Re8 {[%clk 0:02:26.6]} 11. Qd2 {[%clk
0:02:55.9]} 11... Bf8 {[%clk 0:02:26.8]} 12. Rad1 {[%clk 0:02:55.4]} 12... b6
{[%clk 0:02:24.3]} 13. Ba2 {[%clk 0:02:42.7]} 13... Bb7 {[%clk 0:02:21.3]} 14.
Nh2 {[%clk 0:02:37.9]} 14... Rad8 {[%clk 0:02:20.9]} 15. f4 {[%clk 0:02:36.7]}
15... a6 {[%clk 0:02:08.9]} 16. Ng4 {[%clk 0:02:32]} 16... Nxg4 {[%clk
0:01:23.3]} 17. hxg4 {[%clk 0:02:32.9]} 17... b5 {[%clk 0:01:23.7]} 18. fxe5
{[%clk 0:02:21.1]} 18... dxe5 {[%clk 0:01:22]} 19. Rf1 {[%clk 0:02:19.5]} 19...
Nf6 {[%clk 0:00:57.3]} 20. Qf2 {[%clk 0:02:06.2]} 20... exd4 {[%clk 0:00:50.4]}
21. Bxd4 {[%clk 0:02:07.1]} 21... Rxd4 {[%clk 0:00:44.5]} 22. Rxd4 {[%clk
0:02:04.5]} 22... Bc5 {[%clk 0:00:41.8]} 23. g5 {[%clk 0:01:56.2]} 23... Qb6
{[%clk 0:00:40.2]} 24. Rfd1 {[%clk 0:01:54.2]} 24... hxg5 {[%clk 0:00:34]} 25.
b4 {[%clk 0:01:32.8]} 25... Bxd4 {[%clk 0:00:33.7]} 26. Rxd4 {[%clk 0:01:33.3]}
26... c5 {[%clk 0:00:28.6]} 27. Nd5 {[%clk 0:01:21.8]} 27... Nxd5 {[%clk
0:00:14.7]} 28. Bxd5 {[%clk 0:01:22.7]} 28... Bxd5 {[%clk 0:00:13.6]} 29. Rxd5
{[%clk 0:01:23.6]} 29... bxa4 {[%clk 0:00:12.5]} 30. Rd7 {[%clk 0:01:10.1]}
30... Qe6 {[%clk 0:00:10.4]} 31. Rb7 {[%clk 0:01:01.9]} 31... cxb4 {[%clk
0:00:10.6]} 32. Rxb4 {[%clk 0:01:01.5]} 32... a3 {[%clk 0:00:11.3]} 33. Ra4
{[%clk 0:01:01.2]} 33... a2 {[%clk 0:00:11.8]} 34. c3 {[%clk 0:00:56.1]} 34...
Qxe4 {[%clk 0:00:10]} 35. Rxa2 {[%clk 0:00:54.6]} 35... Qe1+ {[%clk 0:00:10.2]}
36. Qxe1 {[%clk 0:00:53.5]} 36... Rxe1+ {[%clk 0:00:11.1]} 37. Kf2 {[%clk
0:00:54.3]} 37... Rc1 {[%clk 0:00:11.3]} 38. Rxa6 {[%clk 0:00:52.9]} 38... Rxc3
{[%clk 0:00:10.9]} 39. Ra7 {[%clk 0:00:53.6]} 39... f6 {[%clk 0:00:10.5]} 40.
Rb7 {[%clk 0:00:53.9]} 40... Rc5 {[%clk 0:00:10.6]} 41. Ra7 {[%clk 0:00:54.3]}
41... Re5 {[%clk 0:00:11.3]} 42. Rb7 {[%clk 0:00:54.7]} 42... Kh7 {[%clk
0:00:12]} 43. Ra7 {[%clk 0:00:55.3]} 43... Kg6 {[%clk 0:00:12.7]} 44. Rb7 {[%clk
0:00:55.9]} 44... Rd5 {[%clk 0:00:12.6]} 45. Ra7 {[%clk 0:00:56.4]} 45... f5
{[%clk 0:00:12.5]} 46. Rb7 {[%clk 0:00:56.9]} 46... g4 {[%clk 0:00:13]} 47. Ra7
{[%clk 0:00:56.9]} 47... Kf6 {[%clk 0:00:13.6]} 48. Ra6+ {[%clk 0:00:56.6]}
48... Kg5 {[%clk 0:00:13.7]} 49. Ra7 {[%clk 0:00:57.3]} 49... g6 {[%clk
0:00:14.3]} 50. Ra6 {[%clk 0:00:57.7]} 50... f4 {[%clk 0:00:14.5]} 51. Rb6
{[%clk 0:00:57.5]} 51... g3+ {[%clk 0:00:14.9]} 52. Kf3 {[%clk 0:00:42.7]} 52...
Rd3+ {[%clk 0:00:14.7]} 53. Ke2 {[%clk 0:00:43.4]} 53... Re3+ {[%clk 0:00:14.9]}
54. Kf1 {[%clk 0:00:44]} 54... Ra3 {[%clk 0:00:14.7]} 55. Rb2 {[%clk 0:00:37.8]}
55... Kg4 {[%clk 0:00:14.6]} 56. Ke2 {[%clk 0:00:38.4]} 56... g5 {[%clk
0:00:14.6]} 57. Rc2 {[%clk 0:00:37.8]} 57... Ra1 {[%clk 0:00:14.7]} 58. Kd3
{[%clk 0:00:30.7]} 58... Rg1 {[%clk 0:00:14.5]} 59. Ke4 {[%clk 0:00:30.5]} 59...
Rf1 {[%clk 0:00:14.6]} 60. Ke5 {[%clk 0:00:29.5]} 60... Rf2 {[%clk 0:00:14.9]}
61. Rc5 {[%clk 0:00:29.9]} 61... Rxg2 {[%clk 0:00:15.2]} 62. Kf6 {[%clk
0:00:30.8]} 62... Rf2 {[%clk 0:00:14.8]} 63. Rxg5+ {[%clk 0:00:31.7]} 63... Kf3
{[%clk 0:00:15.4]} 64. Ke5 {[%clk 0:00:31.6]} 64... Re2+ {[%clk 0:00:15.6]} 65.
Kf5 {[%clk 0:00:31.3]} 65... g2 {[%clk 0:00:16.3]} 0-1